Cogmind - Beta 13 --- EXPLORER MODE // 2024.05.09 @ 20:54:28 Player: Analote Result: Self-destructed Performance ------------- Evolutions (1) 500 Regions Visited (4) 800 Robots Destroyed (10) 50 Value Destroyed (257) 257 Prototype IDs (1) 20 Alien Tech Used (0) 0 Bonus (0) 0 TOTAL SCORE: 1627 Bonus ------- None Cogmind --------- Core Integrity 302/400 Matter 300/300 Energy 174/250 System Corruption 0% Temperature Warning (320) Movement Treading (160) Location -9/Mines Parts ------- > --- POWER (1) -------- Ion Engine > --- PROPULSION (2) --- Light Treads Light Treads > --- UTILITY (4) ------ Medium Storage Unit Seismic Detector Targeting Computer Power Shielding > --- WEAPON (3) ------- EM Pulse Gun Medium Laser Advanced Beam Cannon > --- INVENTORY (10) --- Small Laser Peak State ------------ > --- POWER ------------ Ion Engine > --- PROPULSION ------- Light Treads Light Treads > --- UTILITY ---------- Medium Storage Unit Seismic Detector Targeting Computer Power Shielding > --- WEAPON ----------- EM Pulse Gun Medium Laser Advanced Beam Cannon > --- INVENTORY -------- Small Laser [Rating: 12] Favorites ----------- Power Ion Engine Engine Ion Engine Propulsion Light Treads Treads Light Treads Utility Medium Storage Unit Device Seismic Detector Storage Medium Storage Unit Processor Targeting Computer Protection Power Shielding Weapon Medium Laser Energy Gun Medium Laser Energy Cannon Advanced Beam Cannon Build | -11 -10 -10 -9 -9 ------- Run | Yrd Mat Min Mat Min Slots Evolved 3 | . 1 . 2 . Power . | . . . . . Propulsion . | . . . . . Utility 2 | . 1 . 1 . Weapon 1 | . . . 1 . Parts Attached 13 | 7 2 . 4 . Power 1 | 1 . . . . Engine 1 | 1 . . . . Core . | . . . . . Reactor . | . . . . . Propulsion 2 | 2 . . . . Treads 2 | 2 . . . . Leg . | . . . . . Wheel . | . . . . . Hover . | . . . . . Flight . | . . . . . Utility 5 | 2 1 . 2 . Device 1 | . . . 1 . Storage 2 | 1 . . 1 . Processor 1 | 1 . . . . Hackware . | . . . . . Protection 1 | . 1 . . . Artifact . | . . . . . Weapon 5 | 2 1 . 2 . Energy Gun 4 | 2 1 . 1 . Energy Cannon 1 | . . . 1 . Ballistic Gun . | . . . . . Ballistic Cannon . | . . . . . Launcher . | . . . . . Special Weapon . | . . . . . Impact Weapon . | . . . . . Slashing Weapon . | . . . . . Piercing Weapon . | . . . . . Special Melee Weapon . | . . . . . Unidentified Prototypes 1 | . . . 1 . Parts Lost . | . . . . . Power . | . . . . . Propulsion . | . . . . . Utility . | . . . . . Weapon . | . . . . . Highest Loss Streak . | . . . . . To Critical Strikes . | . . . . . Average Slot Usage (%) 98 | . 100 100 97 100 Engine 10 | . 12 12 10 10 Treads 21 | . 25 25 20 20 Device 5 | . . . 7 10 Storage 10 | . 12 12 10 10 Processor 10 | . 12 12 10 10 Protection 10 | . 12 12 10 10 Energy Gun 22 | . 25 25 21 20 Energy Cannon 5 | . . . 8 10 Naked Turns . | . . . . . Heaviest Build 25 | 18 20 20 25 25 Greatest Support 40 | 40 40 40 40 40 Greatest Overweight (x) 3 | 3 . . . . Average Overweight (x) . | . . . . . Largest Inventory Capacity 10 | 10 10 10 10 10 Average Capacity 9 | 9 10 10 9 10 Most Carried 2 | 2 1 1 2 1 Average Carried . | . . 1 . 1 Final Capacity 10 | 10 10 10 10 10 Final Carried 1 | 1 1 1 1 1 Class Distribution -------------------- 54% | Hacker-Gunner 45% | Hacker-Mutant Dominant Class ---------------- Hacker-Mutant | -10/Materials Hacker-Mutant | -10/Mines Hacker-Gunner | -9/Materials Hacker-Gunner | -9/Mines Resources | -11 -10 -10 -9 -9 ----------- Run | Yrd Mat Min Mat Min Matter Collected 330 | 208 72 10 40 . Remotely . | . . . . . Salvage Created 509 | . . 110 305 94 Parts 16 | . . 2 14 . Haulers Intercepted . | . . . . . Recyclers Shooed . | . . . . . Parts Field Recycled . | . . . . . Retrieved Matter . | . . . . . Parts Self-Destructed . | . . . . . Prevented . | . . . . . Kills | -11 -10 -10 -9 -9 ------- Run | Yrd Mat Min Mat Min Combat Hostiles Destroyed 14 | . . 2 6 6 Guns 8 | . . 2 2 4 Cannons 3 | . . . 1 2 AOE 3 | . . . 3 . Classes Destroyed 6 | . . 1 4 1 Recycler 1 | . . . 1 . Watcher 1 | . . . 1 . Swarmer 3 | . . . 3 . Grunt 3 | . . 2 1 . Sentry 2 | . . . 2 . Assembled 6 | . . . . 6 Best Kill Streak 6 | . . 2 3 6 Combat Bots Only 6 | . . 2 3 6 Max Kills in Single Turn 3 | . . 1 3 2 Gunslinging . | . . . . . Exploded 3 | . . . 3 . Melee . | . . . . . Uniques/NPCs Destroyed . | . . . . . Combat | -11 -10 -10 -9 -9 -------- Run | Yrd Mat Min Mat Min Hostile Shots Fired 50 | . . 11 24 15 Missed 15 | . . . 11 4 Damage Taken 331 | . . 81 91 159 Core 108 | . . 10 6 92 Absorbed by Shields . | . . . . . Redirected to Shielding 4 | . . 2 . 2 Ignored by Resistances 170 | . . 51 59 60 Core Remaining (%) 98 | 100 . 96 . . Volleys Fired 26 | . . 6 11 9 Largest 3 | . . 2 3 3 Hottest 158 | . . 90 158 158 Shots Fired 67 | . . 12 31 24 Gun 50 | . . 12 20 18 Cannon 17 | . . . 11 6 Launcher . | . . . . . Special . | . . . . . Kinetic . | . . . . . Thermal 41 | . . 6 20 15 Explosive . | . . . . . Electromagnetic 26 | . . 6 11 9 Robot Hit Streak 17 | . . 10 17 15 Robot Miss Streak 1 | . . . 1 1 Penetration Max . | . . . . . Secondary Targets . | . . . . . Shots Hit Robots 53 | . . 10 24 19 Core Hits 25 | . . 5 9 11 Critical Kills . | . . . . . Critical Parts Destroyed . | . . . . . Critical Strikes 4 | . . 2 . 2 Burn 3 | . . 1 . 2 Corrupt 1 | . . 1 . . Melee Attacks . | . . . . . Impact . | . . . . . Slashing . | . . . . . Piercing . | . . . . . Sneak Attacks . | . . . . . Combat Hostiles . | . . . . . Follow-up Attacks . | . . . . . Damage Inflicted 892 | . . 128 472 292 Guns 543 | . . 128 227 188 Cannons 248 | . . . 144 104 Explosions 99 | . . . 99 . Melee . | . . . . . Ramming 2 | . . . 2 . Kinetic . | . . . . . Thermal 585 | . . 50 317 218 Explosive . | . . . . . Electromagnetic 305 | . . 78 153 74 Impact . | . . . . . Slashing . | . . . . . Piercing . | . . . . . Highest Corruption . | . . . . . Average Corruption . | . . . . . Corruption Purged . | . . . . . Corruption Blocked . | . . . . . Overload Shots . | . . . . . Overflow Damage 23 | . . . 19 4 Projectiles 15 | . . . 11 4 Explosions 8 | . . . 8 . Melee . | . . . . . Knockbacks . | . . . . . Impact . | . . . . . Kinetic . | . . . . . Secondary . | . . . . . Self-Inflicted Damage . | . . . . . Shots . | . . . . . Rammed . | . . . . . Targets Rammed 1 | . . . 1 . Kicked . | . . . . . Crushed 1 | . . . 1 . Highest Temperature 573 | . . 147 383 573 Average Temperature 192 | . . 69 135 379 Received Heat Transfer 211 | . . 78 33 100 Effects 11 | . . . 1 10 Shutdowns 4 | . . . 1 3 Energy Bleed 1 | . . . . 1 Interference 2 | . . . . 2 Short Circuit 2 | . . . . 2 Damage (minor) 1 | . . . . 1 Damage (core) 1 | . . . . 1 Siege Activations . | . . . . . Robots Corrupted . | . . . . . Combat Hostiles . | . . . . . Parts Fried 1 | . . . 1 . Impact Corruptions . | . . . . . Robots Melted . | . . . . . Combat Hostiles . | . . . . . Parts Melted 1 | . . . 1 . Heat Transferred 1519 | . . 222 631 666 Parts Sabotaged . | . . . . . Parts Stolen . | . . . . . Parts Stripped . | . . . . . Power Chain Reactions 1 | . . . 1 . Alert | -11 -10 -10 -9 -9 ------- Run | Yrd Mat Min Mat Min Peak Influence 222 | . . 65 222 61 Initial 61 | . . . 17 61 Average 62 | . . 28 118 61 Maximum Alert Level 1 | . . . 1 . Low Security (%) 88 | 100 100 100 73 100 Level 1 11 | . . . 26 . Level 2 . | . . . . . Level 3 . | . . . . . Level 4 . | . . . . . Level 5 . | . . . . . High Security . | . . . . . Max Security . | . . . . . Squads Dispatched 1 | . . . 1 . Investigation . | . . . . . Extermination . | . . . . . Reinforcement 1 | . . . 1 . Assault . | . . . . . Garrison . | . . . . . Intercept . | . . . . . Searches Triggered . | . . . . . Construction Impeded . | . . . . . Haulers Reinforced . | . . . . . Active Scanning Responses . | . . . . . Cargo Convoy Interrupts . | . . . . . Stealth | -11 -10 -10 -9 -9 --------- Run | Yrd Mat Min Mat Min Distress Signals 2 | . . . 2 . Communications Jammed . | . . . . . Distress Signals . | . . . . . Times Spotted 22 | . . 3 10 9 Peak Tracking Total 10 | . . 2 4 10 Tactical Retreats 2 | . . 1 . 1 Traps | -11 -10 -10 -9 -9 ------- Run | Yrd Mat Min Mat Min Traps Triggered . | . . . . . Indirectly . | . . . . . Trap Hack Attempts . | . . . . . Triggered . | . . . . . Disarmed . | . . . . . Reprogrammed . | . . . . . Reused . | . . . . . Traps Extracted . | . . . . . Installed . | . . . . . Triggered . | . . . . . Machines | -11 -10 -10 -9 -9 ---------- Run | Yrd Mat Min Mat Min Machines Disabled . | . . . . . Max in Single Turn . | . . . . . Machines Repaired . | . . . . . Machines Dismantled . | . . . . . Machines Sabotaged . | . . . . . Overloaded Fab Kills . | . . . . . Hacking | -11 -10 -10 -9 -9 --------- Run | Yrd Mat Min Mat Min Machines Accessed . | . . . . . Terminals . | . . . . . Fabricators . | . . . . . Repair Stations . | . . . . . Recycling Units . | . . . . . Scanalyzers . | . . . . . Garrison Access . | . . . . . Total Hacks . | . . . . . Successful . | . . . . . Failed . | . . . . . Catastrophic . | . . . . . Database Lockouts . | . . . . . Manual . | . . . . . Terminals . | . . . . . Fabricators . | . . . . . Repair Stations . | . . . . . Recycling Units . | . . . . . Scanalyzers . | . . . . . Garrison Access . | . . . . . Terminal Hacks . | . . . . . Fabricator Hacks . | . . . . . Repair Station Hacks . | . . . . . Recycling Unit Hacks . | . . . . . Scanalyzer . | . . . . . Garrison Access Hacks . | . . . . . Unauthorized Hacks . | . . . . . Terminals . | . . . . . Fabricators . | . . . . . Repair Stations . | . . . . . Recycling Units . | . . . . . Scanalyzers . | . . . . . Garrison Access . | . . . . . Data Cores Recovered . | . . . . . Used . | . . . . . Hacking Detections . | . . . . . Full Trace Events . | . . . . . Feedback Events . | . . . . . Feedback Blocked . | . . . . . Robot Schematics Acquired . | . . . . . Robots Built . | . . . . . Authchips . | . . . . . Time . | . . . . . Total Robot Build Rating . | . . . . . Part Schematics Acquired . | . . . . . Parts Built . | . . . . . Authchips . | . . . . . Time . | . . . . . Total Part Build Rating . | . . . . . Parts Repaired . | . . . . . Time . | . . . . . Parts Recycled . | . . . . . Recycled Matter . | . . . . . Retrieved Matter . | . . . . . Retrieved Components . | . . . . . Parts Scanalyzed . | . . . . . Part Schematics Acquired . | . . . . . Parts Damaged . | . . . . . Bothacking | -11 -10 -10 -9 -9 ------------ Run | Yrd Mat Min Mat Min Used RIF Installer . | . . . . . Robots Hacked . | . . . . . Non-combat . | . . . . . Combat . | . . . . . Robot Hacks Applied . | . . . . . Relay Couplers Released . | . . . . . Fabnet Peak Effective % . | . . . . . Robots Rewired . | . . . . . Allies Hacked . | . . . . . Hacks Repelled . | . . . . . Allies | -11 -10 -10 -9 -9 -------- Run | Yrd Mat Min Mat Min Total Allies . | . . . . . Largest Group . | . . . . . Highest-Rated Group . | . . . . . Highest-Rated Ally . | . . . . . Total Orders . | . . . . . Ally Attacks . | . . . . . Total Damage . | . . . . . Kills . | . . . . . Allies Corrupted . | . . . . . Allies Melted . | . . . . . Intel | -11 -10 -10 -9 -9 ------- Run | Yrd Mat Min Mat Min Robot Analysis Total . | . . . . . Derelict Logs Recovered . | . . . . . Drone Launches . | . . . . . Drone Recoveries . | . . . . . Exploration | -11 -10 -10 -9 -9 ------------- Run | Yrd Mat Min Mat Min Turns Passed 507 | 80 95 47 230 55 Spaces Moved 244 | 43 58 17 110 16 Core 5 | 5 . . . . Treads 239 | 38 58 17 110 16 Legs . | . . . . . Wheels . | . . . . . Hover . | . . . . . Flight . | . . . . . Fastest Speed 50 | 50 160 160 160 160 Average Speed 158 | 154 160 160 160 160 Slowest Speed 200 | 200 160 160 160 160 Overloaded Moves . | . . . . . Propulsion Burnouts . | . . . . . Robots Hopped . | . . . . . Cave-ins Triggered . | . . . . . Exploration Rate (%) 10 | 3 17 14 13 5 Regions Visited 4 Branch Regions 2 Pre-discovered Areas . | . . . . . Known Exits Taken 4 | 1 1 1 1 . Unknown Exits Taken . | . . . . . Scrap Searched . | . . . . . Spaces Dug . | . . . . . Terrain Destroyed 2 | . . . 2 . Melee . | . . . . . Projectile . | . . . . . AOE 2 | . . . 2 . Terrain Rammed . | . . . . . Walls Destroyed . | . . . . . Machines Disabled . | . . . . . Actions | -11 -10 -10 -9 -9 --------- Run | Yrd Mat Min Mat Min Total 306 | 57 60 25 139 25 Wait 14 | . . 3 11 . Move 240 | 42 57 16 109 16 Hop . | . . . . . Pick Up 11 | 8 1 . 2 . Fast Attach . | . . . . . Attach 11 | 7 1 . 3 . Detach 1 | . . . 1 . Swap 2 | . 1 . 1 . Drop . | . . . . . Fire 26 | . . 6 11 9 Melee . | . . . . . Ram . | . . . . . Kick . | . . . . . Crush 1 | . . . 1 . Escape Stasis . | . . . . . Rewire . | . . . . . Trap . | . . . . . Miscellaneous . | . . . . . Route ------- -11/Scrapyard -10/Materials -10/Mines -9/Materials -9/Mines History --------- Turn | Location | Event 26 | -11/Scrapyard | Identified exit to Materials 26 | -11/Scrapyard | Discovered exit to Materials (range 13) 81 | -11/Scrapyard | Entered Materials 81 | -10/Materials | Evolved 1 slot: Utility x1 119 | -10/Materials | Identified exit to Mines 119 | -10/Materials | Discovered exit to Mines (range 16) 176 | -10/Materials | Entered Mines 183 | -10/Mines | Identified exit to Materials 183 | -10/Mines | Discovered exit to Materials (range 8) 223 | -10/Mines | Entered Materials 223 | -9/Materials | Evolved 2 slots: Utility x1, Weapon x1 434 | -9/Materials | Identified exit to Mines 434 | -9/Materials | Discovered exit to Mines (range 11) 453 | -9/Materials | Entered Mines 456 | -9/Mines | Assembled infested the area 508 | -9/Mines | Self-destructed Last Messages --------------- 00486_ as-19313 suffers critical hit (Burn). 00488_ Power failure, Ion Engine shutdown. 00489_ Adv. Beam Cannon broken. 00489_ Overheating: Short circuit. 00489_ as-19313 destroyed. 00490_ Overheating: Energy bleed (-26). 00493_ K-01 Serf collects debris. 00495_ as-78730 destroyed. 00496_ Power failure, Ion Engine shutdown. 00496_ K-01 Serf suffers critical hit (Destroy). 00496_ as-78843 sneak attacks. 00496_ K-01 Serf destroyed. 00497_ Med. Laser broken. 00497_ Overheating: Short circuit. 00498_ Overheating: System interference. 00498_ Seismic Detector temporarily disabled. 00498_ EM Pulse Gun temporarily disabled. 00499_ Overheating: Core damaged (-64). 00500_ Overheating: EM Pulse Gun damaged (-1). 00503_ Power failure, Ion Engine shutdown. Map ----- +----------------------------------------------------+ | ?????????????????????????????????????????????????? | | ?????????????????????????????????????????????????? | | ?????????????????????????????????????????????????? | | ?????????????????????????????????????????????????? | | ?????????????????????????????????????????????????? | | ?????????????????????????????????????????????????? | | ?????????????????????????????????????????????????? | | ?????????????????????????????????????????????????? | | ?????????????????????????????????????????????????? | | ?????????????????????????????????????????????????? | | ?????????????????????????????????????????????????? | | ?????????????????????????????????????????????????? | | ?????????????????????????????????????????????????? | | ?????????????????????????????????????????????????? | | ?????????????????????????????????????????????????? | | ?????????????????????????????????????????????????? | | ????????????????????#########????????????????????? | | ????????????????????# #????????????????????? | | ????????????????????# """ #????????????????????? | | ????????????????????# """ #????????????????????? | | ????????????????????# """ #????????????????????? | | ????????????????????# #????????????????????? | | ????????????????????# #????????????????????? | | ????????????????????# #????????????????????? | | ????????????????????# #????????????????????? | | ????????????????????# @ #????????????????????? | | ????????????????????#####a###????????????????????? | | ????????????????????????#a#??????????????????????? | | ????????????????????#####a#??????????????????????? | | ????????????????????#% #??????????????????????? | | ????????????????????#%#####??????????????????????? | | ????????????????????#%#??????????????????????????? | | ????????????????????#*!??????????????????????????? | | ????????????????????#%#??????????????????????????? | | ???????????????????? =#??????????????????????????? | | ????????????????????###??????????????????????????? | | ?????????????????????????????????????????????????? | | ?????????????????????????????????????????????????? | | ?????????????????????????????????????????????????? | | ?????????????????????????????????????????????????? | | ?????????????????????????????????????????????????? | | ?????????????????????????????????????????????????? | | ?????????????????????????????????????????????????? | | ?????????????????????????????????????????????????? | | ?????????????????????????????????????????????????? | | ?????????????????????????????????????????????????? | | ?????????????????????????????????????????????????? | | ?????????????????????????????????????????????????? | | ?????????????????????????????????????????????????? | | ?????????????????????????????????????????????????? | +----------------------------------------------------+ Best States ------------- Heat Dissipation 28 Energy Generation 10 Energy Capacity 250 Matter Stores 300 Matter Capacity 300 Sight Range 16 Terrain Scan Density 10 Resistance: KI 35 Resistance: TH 35 Resistance: EX 35 Resistance: EM 35 Resistance: I 35 Resistance: S 35 Resistance: P 35 Power Shielding 33 Evasion (%) 40 Targeting Accuracy 5 Recoil Reduction 2 Offensive Hacking 20 Item Schematics ----------------- None Robot Schematics ------------------ None Fabricated ------------ Nothing Alien Tech Used ----------------- None Achievements -------------- None Challenges ------------ None Game ------ Seed VariableSpliceField Manual? 0 Play Time 00:05:45 Cumulative 98.8 hours Start 2024.05.07 @ 20:44:52 End 2024.05.09 @ 20:54:28 Sessions 3 Manual Loads 0 Difficulty Explorer Special Mode None Game No. 122 Rogue 7 Adventurer 1 Explorer 114 Win Type - Total 3 Types 2/0/1/0/0/0/0/0/0 Lore% 57 Gallery% 67 Achievement% 67 Wizard Run 0 Options --------- Layout 0 ASCII 0 Keyboard 1 Movement Numpad Keybinds 0 Fullscreen 2 Font 18/SmallcapsGlow Map View 76x50 Zoom Use 0% Tactical HUD 1 Map Filters NONE Filters NONE Steam 1 RUN: 391fadb8-4450-4b26-baa4-f3880beb7e30